fUSD/lending_fUSD_20241224
["ID","MTS","AMOUNT","RATE_DAILY","PERIOD"]
[346494903,1735008385072,-500.0,0.0001452,2]
[346494904,1735008385108,-500.0,0.0001452,2]
[346494905,1735008385146,-959.99,0.0001452,2]
[346494906,1735008385185,-1416.66,0.0001452,2]
[346494907,1735008385226,-500.0,0.0001452,2]
[346494908,1735008385270,-506.78,0.0001452,2]
[346494909,1735008385315,-1669.57,0.0001452,2]
[346494910,1735008385361,-2621.1,0.0001452,2]
[346494911,1735008385406,-1420.13,0.0001452,2]
[346494912,1735008385448,-4264.33,0.0001452,2]
[346494913,1735008385493,-500.0,0.0001452,2]
[346494914,1735008385534,-1764.22,0.0001452,2]
[346494915,1735008385576,-500.0,0.0001452,2]
[346494916,1735008385621,-1115.44,0.0001452,2]
[346494917,1735008385664,-500.0,0.0001452,2]
[346494918,1735008385709,-753.37,0.0001452,2]
[346494919,1735008385751,-157.734204,0.0001452,2]
[346494920,1735008385795,-930.18,0.0001452,2]
[346494921,1735008385842,-500.0,0.0001452,2]
[346494922,1735008385887,-887.89,0.0001452,2]
[346494923,1735008385929,-766.14,0.0001452,2]
[346494924,1735008385972,-509.52,0.0001452,2]
[346494925,1735008386013,-1303.9,0.0001452,2]
[346494926,1735008386058,-2099.72,0.0001452,2]
[346494927,1735008386100,-559.04,0.0001452,2]
[346494928,1735008386143,-500.13,0.0001452,2]
[346494929,1735008386187,-500.0,0.0001452,2]
[346494930,1735008386229,-512.65,0.0001452,2]
[346494931,1735008386272,-3456.31,0.0001452,2]
[346494932,1735008386314,-2143.34,0.0001452,2]
[346494933,1735008386355,-3437.62,0.0001452,2]
[346494934,1735008386396,-773.11,0.0001452,2]
[346494935,1735008386436,-2693.54,0.0001452,2]
[346494936,1735008386475,-500.0,0.0001452,2]
[346494937,1735008386513,-500.0,0.0001452,2]
[346494938,1735008386554,-500.0,0.0001452,2]
[346494939,1735008386594,-1125.58,0.0001452,2]
[346494940,1735008386636,-590.19,0.0001452,2]
[346494941,1735008386679,-1578.57,0.0001452,2]
[346494942,1735008386724,-8945.45,0.0001452,2]
[346494943,1735008386767,-500.0,0.0001452,2]
[346494944,1735008386813,-500.0,0.0001452,2]
[346494945,1735008386854,-508.91,0.0001452,2]
[346494946,1735008386898,-1191.67,0.0001452,2]
[346494947,1735008386939,-2612.42,0.0001452,2]
[346494948,1735008386978,-1210.74,0.0001452,2]
[346494949,1735008387017,-558.07,0.0001452,2]
[346494950,1735008387060,-500.0,0.0001452,2]
[346494951,1735008387099,-568.34,0.0001452,2]
[346494952,1735008387138,-1348.03,0.0001452,2]
[346494953,1735008387176,-10193.59,0.0001452,2]
[346494954,1735008387216,-1369.59,0.0001452,2]
[346494955,1735008387260,-2133.91,0.0001452,2]
[346494956,1735008387300,-568.34,0.0001452,2]
[346494957,1735008387341,-500.0,0.0001452,2]
[346494958,1735008387380,-1756.55,0.0001452,2]
[346494959,1735008387420,-1363.69,0.0001452,2]
[346494960,1735008387458,-532.91,0.0001452,2]
[346494961,1735008387496,-1558.45,0.0001452,2]
[346494962,1735008387534,-3733.97,0.0001452,2]
[346494963,1735008387574,-500.0,0.0001452,2]
[346494964,1735008387613,-500.0,0.0001452,2]
[346494965,1735008387651,-1767.13,0.0001452,2]
[346494966,1735008387692,-782.28,0.0001452,2]
[346494967,1735008387731,-1364.69,0.0001452,2]
[346494968,1735008387769,-632.48,0.0001452,2]
[346494969,1735008387807,-667.95,0.0001452,2]
[346494970,1735008387850,-818.47,0.0001452,2]
[346494971,1735008387890,-560.38849726,0.0001452,2]
[346494972,1735008387928,-1163.35,0.0001452,2]
[346494973,1735008387966,-500.0,0.0001452,2]
[346494974,1735008388003,-738.63,0.0001452,2]
[346494975,1735008388044,-537.68,0.0001452,2]
[346494976,1735008388084,-691.09,0.0001452,2]
[346494977,1735008388350,-1107.97,0.0001452,2]
[346494978,1735008388388,-1478.36,0.0001452,2]
[346494979,1735008388427,-618.28,0.0001452,2]
[346494980,1735008388467,-500.0,0.0001452,2]
[346494981,1735008388508,-1971.01,0.0001452,2]
[346494982,1735008388549,-2121.84,0.0001452,2]
[346494983,1735008388591,-608.72264836,0.0001452,2]
[346494984,1735008388631,-2885.57,0.0001452,2]
[346494985,1735008388675,-4793.72,0.0001452,2]
[346494986,1735008388723,-500.0,0.0001452,2]
[346494987,1735008388765,-1764.0,0.0001452,2]
[346494988,1735008388807,-933.0,0.0001452,2]
[346494989,1735008388848,-500.0,0.0001452,2]
[346494990,1735008388889,-500.0,0.0001452,2]
[346494991,1735008388930,-500.0,0.0001452,2]
[346494992,1735008388972,-2178.22,0.0001452,2]
[346494993,1735008389013,-4353.99,0.0001452,2]
[346494994,1735008389053,-794.29,0.0001452,2]
[346494995,1735008389095,-500.0,0.0001452,2]
[346494996,1735008389138,-500.0,0.0001452,2]
[346494997,1735008389180,-500.0,0.0001452,2]
[346494998,1735008389221,-500.0,0.0001452,2]
[346494999,1735008389264,-3236.93814739,0.00014693,2]
[346495000,1735008389309,-781.62067888,0.00014693,2]
[346495001,1735008389350,-365.19,0.00014716,2]
[346495002,1735008389392,-977.37,0.00014716,2]
[346495003,1735008389431,-436.35,0.00014716,2]
[346495004,1735008389471,-365.19,0.00014716,2]
[346495005,1735008389510,-977.37,0.00014716,2]
[346495006,1735008389549,-365.19,0.00014716,2]
[346495007,1735008389592,-215.55,0.00014716,2]
[346495008,1735008389631,-436.21,0.00014716,2]
[346495009,1735008389670,-976.2,0.00014716,2]
[346495010,1735008389710,-1068.77962563,0.00014767,2]
[346495011,1735008389749,-1373.72518528,0.00014767,2]
[346495012,1735008389787,-500.0,0.00014793,2]
[346495013,1735008389825,-500.0,0.00014794,2]
[346495014,1735008389868,-500.0,0.00014794,2]
[346495015,1735008389908,-551.7,0.00014794,2]
[346495016,1735008389948,-500.0,0.00014794,2]
[346495017,1735008389987,-227.966176,0.00014794,2]
[346495018,1735008390026,-500.0,0.00014794,2]
[346495019,1735008390066,-500.0,0.00014794,2]
[346495020,1735008390106,-500.0,0.00014794,2]
[346495021,1735008390147,-500.0,0.00014794,2]
[346495022,1735008390187,-500.0,0.00014794,2]
[346495023,1735008390229,-500.0,0.00014794,2]
[346495024,1735008390270,-500.0,0.00014794,2]
[346495025,1735008390312,-500.0,0.00014794,2]
[346495026,1735008390353,-500.0,0.00014794,2]
[346495027,1735008390393,-500.0,0.00014794,2]
[346495028,1735008390432,-500.0,0.00014794,2]
[346495029,1735008390473,-500.0,0.00014794,2]
[346495030,1735008390512,-500.0,0.00014794,2]
[346495031,1735008390559,-500.0,0.00014794,2]
[346495032,1735008390602,-506.43,0.00014794,2]
[346495033,1735008390645,-396.74297041,0.00014794,2]
[346495034,1735008390685,-544.1,0.00014794,2]
[346495035,1735008390730,-500.0,0.00014794,2]
[346495036,1735008390773,-500.0,0.00014794,2]
[346495037,1735008390815,-500.0,0.00014794,2]
[346495038,1735008390855,-500.0,0.00014794,2]
[346495039,1735008390895,-500.0,0.00014794,2]
[346495040,1735008390935,-553.98,0.00014794,2]
[346495041,1735008390974,-500.0,0.00014794,2]
[346495042,1735008391015,-500.0,0.00014794,2]
[346495043,1735008391055,-500.0,0.00014794,2]
[346495044,1735008391095,-500.0,0.00014794,2]
[346495045,1735008391134,-500.0,0.00014794,2]
[346495046,1735008391174,-500.0,0.00014794,2]
[346495047,1735008391216,-500.0,0.00014794,2]
[346495048,1735008391258,-500.0,0.00014794,2]
[346495049,1735008391300,-500.0,0.00014794,2]
[346495050,1735008391343,-500.0,0.00014794,2]
[346495051,1735008391384,-563.4,0.00014794,2]
[346495052,1735008391425,-608.27,0.00014794,2]
[346495053,1735008391467,-1280.82,0.00014794,2]
[346495054,1735008391506,-500.0,0.00014794,2]
[346495055,1735008391544,-737.23,0.00014794,2]
[346495056,1735008391582,-500.0,0.00014794,2]
[346495057,1735008391623,-500.0,0.00014794,2]
[346495058,1735008391662,-500.0,0.00014794,2]
[346495059,1735008391702,-886.63,0.00014794,2]
[346495060,1735008391741,-510.06,0.00014794,2]
[346495061,1735008391779,-500.0,0.00014794,2]
[346495062,1735008391819,-500.0,0.00014794,2]
[346495063,1735008391857,-500.0,0.00014794,2]
[346495064,1735008391897,-500.0,0.00014794,2]
[346495065,1735008391935,-500.0,0.00014794,2]
[346495066,1735008391973,-500.0,0.00014794,2]
[346495067,1735008392011,-542.893518,0.00014794,2]
[346495068,1735008392049,-530.28,0.00014794,2]
[346495069,1735008392091,-500.0,0.00014794,2]
[346495070,1735008392128,-547.102636,0.00014794,2]
[346495071,1735008392166,-1290.02,0.00014794,2]
[346495072,1735008392203,-541.94,0.00014794,2]
[346495073,1735008392242,-500.0,0.00014794,2]
[346495074,1735008392278,-500.0,0.00014794,2]
[346495075,1735008392316,-500.0,0.00014794,2]
[346495076,1735008392354,-500.0,0.00014794,2]
[346495077,1735008392390,-500.0,0.00014794,2]
[346495078,1735008392427,-326.85708044,0.00014794,2]
[346495079,1735008392463,-804.4,0.00014794,2]
[346495080,1735008392499,-997.08,0.00014794,2]
[346495081,1735008392537,-561.01,0.00014794,2]
[346495082,1735008392572,-500.0,0.00014794,2]
[346495083,1735008392612,-500.0,0.00014794,2]
[346495084,1735008392652,-500.0,0.00014794,2]
[346495085,1735008392694,-500.0,0.00014794,2]
[346495086,1735008392731,-500.0,0.00014794,2]
[346495087,1735008392771,-500.0,0.00014794,2]
[346495088,1735008392812,-500.0,0.00014794,2]
[346495089,1735008392850,-500.0,0.00014794,2]
[346495090,1735008392892,-500.0,0.00014794,2]
[346495091,1735008392932,-500.0,0.00014794,2]
[346495092,1735008392971,-500.0,0.00014794,2]
[346495093,1735008393010,-645.95,0.00014794,2]
[346495094,1735008393050,-500.0,0.00014794,2]
[346495095,1735008393090,-955.96,0.00014794,2]
[346495096,1735008393129,-678.16,0.00014794,2]
[346495097,1735008393170,-992.94,0.00014794,2]
[346495098,1735008393211,-500.0,0.00014794,2]
[346495099,1735008393252,-500.0,0.00014794,2]
[346495100,1735008393294,-500.0,0.00014794,2]
[346495101,1735008393335,-500.0,0.00014794,2]
[346495102,1735008393378,-500.0,0.00014794,2]
[346495103,1735008393421,-500.0,0.00014794,2]
[346495104,1735008393462,-500.0,0.00014794,2]
[346495105,1735008393502,-500.0,0.00014794,2]
[346495106,1735008393543,-500.0,0.00014794,2]
[346495107,1735008393584,-500.0,0.00014794,2]
[346495108,1735008393627,-702.02,0.00014794,2]
[346495109,1735008393668,-513.89,0.00014794,2]
[346495110,1735008393709,-806.39,0.00014794,2]
[346495111,1735008393752,-500.0,0.00014794,2]
[346495112,1735008393793,-500.0,0.00014794,2]
[346495113,1735008393834,-559.74,0.00014794,2]
[346495114,1735008393877,-500.0,0.00014794,2]
[346495115,1735008393918,-500.0,0.00014794,2]
[346495116,1735008393961,-927.56,0.00014794,2]
[346495117,1735008394002,-500.0,0.00014794,2]
[346495118,1735008394042,-607.98,0.00014794,2]
[346495119,1735008394081,-500.0,0.00014794,2]
[346495120,1735008394120,-578.12,0.00014794,2]
[346495121,1735008394160,-986.24,0.00014794,2]
[346495122,1735008394199,-500.0,0.00014794,2]
[346495123,1735008394237,-1254.85,0.00014794,2]
[346495124,1735008394278,-500.0,0.00014794,2]
[346495125,1735008394316,-635.52,0.00014794,2]
[346495126,1735008394588,-851.14,0.00014794,2]
[346495127,1735008394627,-944.54,0.00014794,2]
[346495128,1735008394665,-659.66,0.00014794,2]
[346495129,1735008394705,-681.87,0.00014794,2]
[346495130,1735008394744,-792.71,0.00014794,2]
[346495131,1735008394783,-633.9,0.00014794,2]
[346495132,1735008394823,-500.0,0.00014794,2]
[346495133,1735008394861,-650.54,0.00014794,2]
[346495134,1735008394900,-550.54,0.00014794,2]
[346495135,1735008394938,-500.0,0.00014794,2]
[346495136,1735008394979,-531.13,0.00014794,2]
[346495137,1735008395016,-500.0,0.00014794,2]
[346495138,1735008395057,-500.0,0.00014794,2]
[346495139,1735008395096,-748.46,0.00014794,2]
[346495140,1735008395133,-500.0,0.00014794,2]
[346495141,1735008395170,-500.0,0.00014794,2]
[346495142,1735008395207,-792.52,0.00014794,2]
[346495143,1735008395244,-500.0,0.00014794,2]
[346495144,1735008395281,-637.62,0.00014794,2]
[346495145,1735008395320,-500.0,0.00014794,2]
[346495146,1735008395360,-621.42,0.00014794,2]
[346495147,1735008395398,-929.27,0.00014794,2]
[346495148,1735008395437,-500.0,0.00014794,2]
[346495149,1735008395475,-500.0,0.00014794,2]
[346495150,1735008395512,-734.71,0.00014794,2]
[346495151,1735008395548,-817.51,0.00014794,2]
[346495152,1735008395585,-783.59,0.00014794,2]
[346495153,1735008395622,-500.0,0.00014794,2]
[346495154,1735008395660,-1262.85,0.00014794,2]
[346495155,1735008395700,-1213.34,0.00014794,2]
[346495156,1735008395740,-500.0,0.00014794,2]
[346495157,1735008395779,-955.21,0.00014794,2]
[346495158,1735008395817,-500.0,0.00014794,2]
[346495159,1735008395856,-837.58,0.00014794,2]
[346495160,1735008395896,-553.61,0.00014794,2]
[346495161,1735008395937,-1312.26,0.00014794,2]
[346495162,1735008395978,-752.54,0.00014794,2]
[346495163,1735008396015,-1425.9,0.00014794,2]
[346495164,1735008396053,-694.76,0.00014794,2]
[346495165,1735008396092,-500.0,0.00014794,2]
[346495166,1735008396130,-500.0,0.00014794,2]
[346495167,1735008396169,-820.68,0.00014794,2]
[346495168,1735008396209,-500.0,0.00014794,2]
[346495169,1735008396248,-500.0,0.00014794,2]
[346495170,1735008396287,-1141.13,0.00014794,2]
[346495171,1735008396327,-500.0,0.00014794,2]
[346495172,1735008396367,-500.0,0.00014794,2]
[346495173,1735008396404,-179.67328056,0.00014794,2]
[346495174,1735008396441,-500.0,0.00014794,2]
[346495175,1735008396479,-538.21,0.00014794,2]
[346495176,1735008396518,-1044.61,0.00014794,2]
[346495177,1735008396558,-516.57,0.00014794,2]
[346495178,1735008396597,-1067.68,0.00014794,2]
[346495179,1735008396634,-500.0,0.00014794,2]
[346495180,1735008396670,-500.0,0.00014794,2]
[346495181,1735008396708,-1376.58,0.00014794,2]
[346495182,1735008396746,-500.0,0.00014794,2]
[346495183,1735008396784,-500.0,0.00014794,2]
[346495184,1735008396823,-935.71,0.00014794,2]
[346495185,1735008396861,-500.0,0.00014794,2]
[346495186,1735008396900,-564.74,0.00014794,2]
[346495187,1735008396939,-577.33,0.00014794,2]
[346495188,1735008396978,-500.0,0.00014794,2]
[346495189,1735008397017,-572.09,0.00014794,2]
[346495190,1735008397054,-500.0,0.00014794,2]
[346495191,1735008397091,-566.24,0.00014794,2]
[346495192,1735008397130,-500.0,0.00014794,2]
[346495193,1735008397168,-597.0,0.00014794,2]
[346495194,1735008397207,-553.82,0.00014794,2]
[346495195,1735008397243,-500.0,0.00014794,2]
[346495196,1735008397279,-500.0,0.00014794,2]
[346495197,1735008397318,-803.29,0.00014794,2]
[346495198,1735008397355,-645.31,0.00014794,2]
[346495199,1735008397392,-1090.69,0.00014794,2]
[346495200,1735008397428,-500.0,0.00014794,2]
[346495201,1735008397462,-500.0,0.00014794,2]
[346495202,1735008397499,-500.0,0.00014794,2]
[346495203,1735008397535,-860.37,0.00014794,2]
[346495204,1735008397572,-500.0,0.00014794,2]
[346495205,1735008397612,-500.0,0.00014794,2]
[346495206,1735008397653,-616.47,0.00014794,2]
[346495207,1735008397691,-500.0,0.00014794,2]
[346495208,1735008397729,-637.23,0.00014794,2]
[346495209,1735008397767,-672.28,0.00014794,2]
[346495210,1735008397804,-716.05,0.00014794,2]
[346495211,1735008397848,-500.0,0.00014794,2]
[346495212,1735008397886,-500.0,0.00014794,2]
[346495213,1735008397924,-883.47,0.00014794,2]
[346495214,1735008397960,-1581.16,0.00014794,2]
[346495215,1735008397996,-500.0,0.00014794,2]
[346495216,1735008398032,-3503.34,0.00014794,2]
[346495217,1735008398069,-657.4,0.00014794,2]
[346495218,1735008398107,-500.0,0.00014794,2]
[346495219,1735008398141,-566.15,0.00014794,2]
[346495220,1735008398183,-500.0,0.00014794,2]
[346495221,1735008398220,-500.0,0.00014794,2]
[346495222,1735008398259,-2027.11,0.00014794,2]
[346495223,1735008398295,-500.0,0.00014794,2]
[346495224,1735008398332,-3591.24,0.00014794,2]
[346495225,1735008398368,-500.0,0.00014794,2]
[346495226,1735008398404,-500.0,0.00014794,2]
[346495227,1735008398442,-500.0,0.00014794,2]
[346495228,1735008398477,-590.81,0.00014794,2]
[346495229,1735008398511,-804.08,0.00014794,2]
[346495230,1735008398547,-500.0,0.00014794,2]
[346495231,1735008398584,-500.0,0.00014794,2]
[346495232,1735008398623,-21595.93,0.00014794,2]
[346495233,1735008398660,-500.0,0.00014794,2]
[346495234,1735008398697,-500.0,0.00014794,2]
[346495235,1735008398737,-1659.16,0.00014794,2]
[346495236,1735008398775,-500.0,0.00014794,2]
[346495237,1735008398815,-500.0,0.00014794,2]
[346495238,1735008398855,-500.0,0.00014794,2]
[346495239,1735008398894,-710.98,0.00014794,2]
[346495240,1735008398933,-500.0,0.00014794,2]
[346495241,1735008398973,-500.0,0.00014794,2]
[346495242,1735008399012,-2986.9,0.00014794,2]
[346495243,1735008399051,-816.78,0.00014794,2]
[346495244,1735008399090,-500.0,0.00014794,2]
[346495245,1735008399129,-577.62,0.00014794,2]
[346495246,1735008399170,-521.99,0.00014794,2]
[346495247,1735008399211,-8175.08,0.00014794,2]
[346495248,1735008399251,-2436.1,0.00014794,2]
[346495249,1735008399293,-2429.26,0.00014794,2]
[346495250,1735008399335,-500.0,0.00014794,2]
[346495251,1735008399376,-500.0,0.00014794,2]
[346495252,1735008399417,-1008.4,0.00014794,2]
[346495253,1735008399459,-500.0,0.00014794,2]
[346495254,1735008399500,-500.0,0.00014794,2]
[346495255,1735008399542,-502.19,0.00014794,2]
[346495256,1735008399582,-614.63,0.00014794,2]
[346495257,1735008399622,-500.0,0.00014794,2]
[346495258,1735008399664,-3129.27,0.00014794,2]
[346495259,1735008399704,-542.24,0.00014794,2]
[346495260,1735008399744,-500.0,0.00014794,2]
[346495261,1735008399783,-500.0,0.00014794,2]
[346495262,1735008399824,-8233.59,0.00014794,2]
[346495263,1735008399866,-500.0,0.00014794,2]
[346495264,1735008399908,-2047.93,0.00014794,2]
[346495265,1735008399952,-677.88,0.00014794,2]
[346495266,1735008399993,-5404.38,0.00014794,2]
[346495267,1735008400032,-818.91,0.00014794,2]
[346495268,1735008400072,-500.0,0.00014794,2]
[346495269,1735008400113,-970.89,0.00014794,2]
[346495270,1735008400156,-7651.66,0.00014794,2]
[346495271,1735008400196,-809.52,0.00014794,2]
[346495272,1735008400235,-500.0,0.00014794,2]
[346495273,1735008400274,-8419.88,0.00014794,2]
[346495274,1735008400314,-860.88,0.00014794,2]
[346495275,1735008400634,-2766.28,0.00014794,2]
[346495276,1735008400678,-2282.28,0.00014794,2]
[346495277,1735008400720,-695.8,0.00014794,2]
[346495278,1735008400763,-3610.4,0.00014794,2]
[346495279,1735008400805,-500.0,0.00014794,2]
[346495280,1735008400847,-2090.42,0.00014794,2]
[346495281,1735008400889,-998.64,0.00014794,2]
[346495282,1735008400928,-598.32449714,0.00014794,2]
[346495283,1735008400967,-950.94,0.00014794,2]
[346495284,1735008401005,-5259.27,0.00014794,2]
[346495285,1735008401044,-2089.2,0.00014794,2]
[346495286,1735008401084,-1799.95,0.00014794,2]
[346495287,1735008401125,-838.62,0.00014794,2]
[346495288,1735008401165,-500.0,0.00014794,2]
[346495289,1735008401205,-5829.39,0.00014794,2]
[346495290,1735008401244,-1832.71,0.00014794,2]
[346495291,1735008401284,-1283.37,0.00014794,2]
[346495292,1735008401323,-523.84,0.00014794,2]
[346495293,1735008401366,-4312.16,0.00014794,2]
[346495294,1735008401405,-500.0,0.00014794,2]
[346495295,1735008401444,-2132.45,0.00014794,2]
[346495296,1735008401486,-3129.18,0.00014794,2]
[346495297,1735008401528,-500.0,0.00014794,2]
[346495298,1735008401570,-977.58,0.00014794,2]
[346495299,1735008401612,-3183.38,0.00014794,2]
[346495300,1735008401652,-3700.79,0.00014794,2]
[346495301,1735008401694,-597.73,0.00014794,2]
[346495302,1735008401735,-500.0,0.00014794,2]
[346495303,1735008401776,-500.0,0.00014794,2]
[346495304,1735008401814,-633.5,0.00014794,2]
[346495305,1735008401854,-12691.69,0.00014794,2]
[346495306,1735008401894,-647.8,0.00014794,2]
[346495307,1735008401935,-584.22,0.00014794,2]
[346495308,1735008401976,-1455.89,0.00014794,2]
[346495309,1735008402015,-500.0,0.00014794,2]
[346495310,1735008402053,-807.5,0.00014794,2]
[346495311,1735008402092,-500.0,0.00014794,2]
[346495312,1735008402130,-2357.21,0.00014794,2]
[346495313,1735008402169,-500.0,0.00014794,2]
[346495314,1735008402207,-774.07,0.00014794,2]
[346495315,1735008402244,-5767.83,0.00014794,2]
[346495316,1735008402282,-500.0,0.00014794,2]
[346495317,1735008402321,-1570.04,0.00014794,2]
[346495318,1735008402361,-1274.61,0.00014794,2]
[346495319,1735008402407,-2159.81,0.00014794,2]
[346495320,1735008402446,-557.5,0.00014794,2]
[346495321,1735008402488,-581.6,0.00014794,2]
[346495322,1735008402529,-665.71,0.00014794,2]
[346495323,1735008402570,-500.0,0.00014794,2]
[346495324,1735008402611,-500.0,0.00014794,2]
[346495325,1735008402650,-998.4,0.00014794,2]
[346495326,1735008402693,-801.02,0.00014794,2]
[346495327,1735008402734,-500.0,0.00014794,2]
[346495328,1735008402774,-5879.93,0.00014794,2]
[346495329,1735008402813,-2416.12,0.00014794,2]
[346495330,1735008402853,-1466.45,0.00014794,2]
[346495331,1735008402894,-1814.88,0.00014794,2]
[346495332,1735008402935,-643.35,0.00014794,2]
[346495333,1735008402975,-617.6,0.00014794,2]
[346495334,1735008403014,-1281.83,0.00014794,2]
[346495335,1735008403055,-3515.62,0.00014794,2]
[346495336,1735008403097,-529.92,0.00014794,2]
[346495337,1735008403136,-1029.62,0.00014794,2]
[346495338,1735008403177,-558.06,0.00014794,2]
[346495339,1735008403216,-500.0,0.00014794,2]
[346495340,1735008403255,-3788.5,0.00014794,2]
[346495341,1735008403297,-500.0,0.00014794,2]
[346495342,1735008403338,-5650.78,0.00014794,2]
[346495343,1735008403378,-500.0,0.00014794,2]
[346495344,1735008403417,-390.35929993,0.00014794,2]
[346495345,1735008403455,-500.0,0.00014794,2]
[346495346,1735008403496,-2552.19,0.00014794,2]
[346495347,1735008403536,-2466.62,0.00014794,2]
[346495348,1735008403577,-1364.37,0.00014794,2]
[346495349,1735008403618,-500.0,0.00014794,2]
[346495350,1735008403659,-1322.16,0.00014794,2]
[346495351,1735008403699,-500.0,0.00014794,2]
[346495352,1735008403740,-577.57,0.00014794,2]
[346495353,1735008403781,-500.0,0.00014794,2]
[346495354,1735008403823,-780.33,0.00014794,2]
[346495355,1735008403864,-646.65,0.00014794,2]
[346495356,1735008403905,-1193.88,0.00014794,2]
[346495357,1735008403946,-623.63,0.00014794,2]
[346495358,1735008403985,-580.82,0.00014794,2]
[346495359,1735008404023,-3239.76,0.00014794,2]
[346495360,1735008404060,-500.0,0.00014794,2]
[346495361,1735008404100,-2328.87,0.00014794,2]
[346495362,1735008404139,-1002.87,0.00014794,2]
[346495363,1735008404179,-500.0,0.00014794,2]
[346495364,1735008404218,-500.0,0.00014794,2]
[346495365,1735008404255,-959.99,0.00014794,2]
[346495366,1735008404293,-1416.66,0.00014794,2]
[346495367,1735008404333,-500.0,0.00014794,2]
[346495368,1735008404372,-506.78,0.00014794,2]
[346495369,1735008404411,-1669.57,0.00014794,2]
[346495370,1735008404449,-2621.1,0.00014794,2]
[346495371,1735008404488,-1420.13,0.00014794,2]
[346495372,1735008404529,-4264.33,0.00014794,2]
[346495373,1735008404571,-500.0,0.00014794,2]
[346495374,1735008404614,-1764.22,0.00014794,2]
[346495375,1735008404652,-500.0,0.00014794,2]
[346495376,1735008404694,-1115.44,0.00014794,2]
[346495377,1735008404733,-500.0,0.00014794,2]
[346495378,1735008404774,-753.37,0.00014794,2]
[346495379,1735008404812,-930.18,0.00014794,2]
[346495380,1735008404852,-500.0,0.00014794,2]
[346495381,1735008404892,-887.89,0.00014794,2]
[346495382,1735008404939,-766.14,0.00014794,2]
[346495383,1735008404981,-509.52,0.00014794,2]
[346495384,1735008405022,-1303.9,0.00014794,2]
[346495385,1735008405060,-2099.72,0.00014794,2]
[346495386,1735008405100,-559.04,0.00014794,2]
[346495387,1735008405138,-500.13,0.00014794,2]
[346495388,1735008405178,-500.0,0.00014794,2]
[346495389,1735008405217,-3456.31,0.00014794,2]
[346495390,1735008405255,-512.65,0.00014794,2]
[346495391,1735008405294,-2143.34,0.00014794,2]
[346495392,1735008405333,-3437.62,0.00014794,2]
[346495393,1735008405373,-773.11,0.00014794,2]
[346495394,1735008405412,-2693.54,0.00014794,2]
[346495395,1735008405449,-500.0,0.00014794,2]
[346495396,1735008405488,-500.0,0.00014794,2]
[346495397,1735008405528,-500.0,0.00014794,2]
[346495398,1735008405566,-1125.58,0.00014794,2]
[346495399,1735008405606,-590.19,0.00014794,2]
[346495400,1735008405647,-1578.57,0.00014794,2]
[346495401,1735008405686,-8945.45,0.00014794,2]
[346495402,1735008405730,-500.0,0.00014794,2]